[Event "Titled Tuesday Blitz September 27 Early 2022"]
[White "Hansen, Torbjorn Ringdal"]
[Black "Yang, Ray"]
[WhiteFideId "1501720"]
[BlackFideId "3220281"]
[WhiteElo "2383"]
[BlackElo "1796"]
[Result "1-0"]
[Round "07"]
[TimeControl "180+1"]
[Date "2022.09.27"]
[WhiteClock "0:00:16"]
[BlackClock "0:00:12"]

1. e4 {[%clk 0:01:53]}  e6 {[%clk 0:03:00]} 2. d4 {[%clk 0:01:52]}  d5 {[%clk 0:03:00]} 3. e5 {[%clk 0:01:53]}  c5 {[%clk 0:03:01]} 4. c3 {[%clk 0:01:53]}  Qb6 {[%clk 0:03:01]} 5. Nf3 {[%clk 0:01:52]}  Nc6 {[%clk 0:03:01]} 6. Bd3 {[%clk 0:01:53]}  cxd4 {[%clk 0:03:02]} 7. cxd4 {[%clk 0:01:53]}  Bd7 {[%clk 0:03:02]} 8. O-O {[%clk 0:01:52]}  Nxd4 {[%clk 0:03:01]} 9. Nbd2 {[%clk 0:01:50]}  Bc5 {[%clk 0:02:59]} 10. Nxd4 {[%clk 0:01:46]}  Bxd4 {[%clk 0:02:58]} 11. Nf3 {[%clk 0:01:47]}  Ne7 {[%clk 0:02:53]} 12. Rb1 {[%clk 0:01:40]}  Nc6 {[%clk 0:02:49]} 13. b4 {[%clk 0:01:37]}  Nxe5 {[%clk 0:02:42]} 14. a4 {[%clk 0:01:06]}  Nxd3 {[%clk 0:02:31]} 15. Qxd3 {[%clk 0:01:07]}  Bf6 {[%clk 0:02:30]} 16. Be3 {[%clk 0:01:04]}  Qd8 {[%clk 0:02:27]} 17. Bc5 {[%clk 0:01:04]}  Be7 {[%clk 0:02:26]} 18. Qd4 {[%clk 0:01:02]}  Bxc5 {[%clk 0:02:22]} 19. Qxg7 {[%clk 0:01:02]}  Rf8 {[%clk 0:01:48]} 20. bxc5 {[%clk 0:01:02]}  Bc6 {[%clk 0:01:42]} 21. Ne5 {[%clk 0:01:02]}  Qe7 {[%clk 0:01:36]} 22. Qxh7 {[%clk 0:00:48]}  O-O-O {[%clk 0:01:26]} 23. Nxc6 {[%clk 0:00:40]}  bxc6 {[%clk 0:01:27]} 24. Qd3 {[%clk 0:00:40]}  Qxc5 {[%clk 0:01:03]} 25. Qa6+ {[%clk 0:00:39]}  Kd7 {[%clk 0:00:59]} 26. Rfc1 {[%clk 0:00:40]}  Qd6 {[%clk 0:00:54]} 27. Rb7+ {[%clk 0:00:38]}  Ke8 {[%clk 0:00:52]} 28. Rxc6 {[%clk 0:00:36]}  Qe5 {[%clk 0:00:41]} 29. Rc1 {[%clk 0:00:23]}  Rh8 {[%clk 0:00:36]} 30. g3 {[%clk 0:00:20]}  Qh5 {[%clk 0:00:20]} 31. h4 {[%clk 0:00:19]}  Qg6 {[%clk 0:00:18]} 32. Rcc7 {[%clk 0:00:17]}  Rxh4 {[%clk 0:00:12]} 33. Re7+ {[%clk 0:00:16]}  Kf8 {[%clk 0:00:13]} 34. Rxf7+ {[%clk 0:00:17]}  Ke8 {[%clk 0:00:12]} 35. Rbe7# {[%clk 0:00:16]} 1-0


[Site "https://www.chess.com"]

[Event "Titled Tuesday Blitz September 27 Early 2022"]
[White "Harish, Neeraj"]
[Black "Rosenberg, Evan S"]
[WhiteFideId "30958130"]
[BlackFideId "2019299"]
[WhiteElo "1574"]
[BlackElo "2359"]
[Result "0-1"]
[Round "07"]
[TimeControl "180+1"]
[Date "2022.09.27"]
[WhiteClock "0:00:05"]
[BlackClock "0:00:26"]

1. e4 {[%clk 0:03:00]}  e6 {[%clk 0:02:53]} 2. d4 {[%clk 0:02:59]}  d5 {[%clk 0:02:53]} 3. Nc3 {[%clk 0:02:55]}  Bb4 {[%clk 0:02:52]} 4. e5 {[%clk 0:02:51]}  c5 {[%clk 0:02:49]} 5. a3 {[%clk 0:02:51]}  Bxc3+ {[%clk 0:02:49]} 6. bxc3 {[%clk 0:02:52]}  Ne7 {[%clk 0:02:50]} 7. h4 {[%clk 0:02:51]}  Qc7 {[%clk 0:02:45]} 8. h5 {[%clk 0:02:50]}  h6 {[%clk 0:02:45]} 9. Rb1 {[%clk 0:02:50]}  Nbc6 {[%clk 0:02:33]} 10. Qg4 {[%clk 0:02:45]}  Rg8 {[%clk 0:02:32]} 11. Bd3 {[%clk 0:02:26]}  c4 {[%clk 0:02:06]} 12. Bh7 {[%clk 0:02:19]}  Nxe5 {[%clk 0:02:06]} 13. Qf4 {[%clk 0:01:39]}  Nd3+ {[%clk 0:02:00]} 14. cxd3 {[%clk 0:01:29]}  Qxf4 {[%clk 0:02:00]} 15. Bxf4 {[%clk 0:01:30]}  Rh8 {[%clk 0:02:01]} 16. dxc4 {[%clk 0:01:21]}  Rxh7 {[%clk 0:02:00]} 17. c5 {[%clk 0:01:20]}  b6 {[%clk 0:01:50]} 18. cxb6 {[%clk 0:01:03]}  axb6 {[%clk 0:01:50]} 19. Bd6 {[%clk 0:01:03]}  Ra6 {[%clk 0:01:39]} 20. Nf3 {[%clk 0:01:02]}  Nf5 {[%clk 0:01:32]} 21. Bc7 {[%clk 0:00:55]}  Rxa3 {[%clk 0:01:29]} 22. Bxb6 {[%clk 0:00:51]}  Rxc3 {[%clk 0:01:27]} 23. O-O {[%clk 0:00:50]}  g6 {[%clk 0:01:17]} 24. Ne5 {[%clk 0:00:30]}  gxh5 {[%clk 0:01:09]} 25. Bc5 {[%clk 0:00:26]}  f6 {[%clk 0:01:02]} 26. Rb8 {[%clk 0:00:16]}  fxe5 {[%clk 0:00:59]} 27. Rxc8+ {[%clk 0:00:16]}  Kd7 {[%clk 0:01:00]} 28. Ra8 {[%clk 0:00:15]}  Rg7 {[%clk 0:00:50]} 29. Ra7+ {[%clk 0:00:14]}  Kc6 {[%clk 0:00:50]} 30. Rxg7 {[%clk 0:00:12]}  Nxg7 {[%clk 0:00:50]} 31. Bf8 {[%clk 0:00:12]}  Nf5 {[%clk 0:00:48]} 32. dxe5 {[%clk 0:00:12]}  d4 {[%clk 0:00:46]} 33. Ra1 {[%clk 0:00:10]}  Kd5 {[%clk 0:00:39]} 34. Ra5+ {[%clk 0:00:08]}  Ke4 {[%clk 0:00:39]} 35. Kf1 {[%clk 0:00:08]}  d3 {[%clk 0:00:37]} 36. Ke1 {[%clk 0:00:08]}  Rc2 {[%clk 0:00:33]} 37. f3+ {[%clk 0:00:05]}  Kf4 {[%clk 0:00:26]} 0-1


[Site "https://www.chess.com"]

[Event "Titled Tuesday Blitz September 27 Early 2022"]
[White "Harsh Suresh"]
[Black "Lahdelma, Henri"]
[WhiteFideId "45018464"]
[BlackFideId "510394"]
[WhiteElo "2070"]
[BlackElo "2210"]
[Result "0-1"]
[Round "07"]
[TimeControl "180+1"]
[Date "2022.09.27"]
[WhiteClock "0:00:51"]
[BlackClock "0:00:17"]

1. e4 {[%clk 0:03:00]}  e6 {[%clk 0:03:00]} 2. d3 {[%clk 0:02:59]}  d5 {[%clk 0:03:00]} 3. Nd2 {[%clk 0:03:00]}  Nf6 {[%clk 0:03:00]} 4. Ngf3 {[%clk 0:03:00]}  Nc6 {[%clk 0:03:00]} 5. g3 {[%clk 0:03:00]}  dxe4 {[%clk 0:03:01]} 6. dxe4 {[%clk 0:03:01]}  e5 {[%clk 0:03:01]} 7. Bg2 {[%clk 0:03:01]}  Bc5 {[%clk 0:03:02]} 8. O-O {[%clk 0:03:02]}  O-O {[%clk 0:03:02]} 9. Qe2 {[%clk 0:02:50]}  a5 {[%clk 0:03:01]} 10. Nb3 {[%clk 0:02:44]}  Bb6 {[%clk 0:02:59]} 11. Bg5 {[%clk 0:02:44]}  h6 {[%clk 0:02:58]} 12. Rad1 {[%clk 0:02:43]}  Qe7 {[%clk 0:02:58]} 13. Bxf6 {[%clk 0:02:43]}  Qxf6 {[%clk 0:02:59]} 14. c3 {[%clk 0:02:41]}  a4 {[%clk 0:02:44]} 15. Nbd2 {[%clk 0:02:41]}  Bc5 {[%clk 0:02:44]} 16. b4 {[%clk 0:02:38]}  axb3 {[%clk 0:02:44]} 17. axb3 {[%clk 0:02:39]}  Ra2 {[%clk 0:02:41]} 18. Ra1 {[%clk 0:02:36]}  Rxa1 {[%clk 0:02:28]} 19. Rxa1 {[%clk 0:02:37]}  Be6 {[%clk 0:02:26]} 20. b4 {[%clk 0:02:35]}  Bb6 {[%clk 0:02:26]} 21. Nc4 {[%clk 0:02:36]}  Bxc4 {[%clk 0:02:25]} 22. Qxc4 {[%clk 0:02:37]}  Rd8 {[%clk 0:02:22]} 23. Qe2 {[%clk 0:02:26]}  Qd6 {[%clk 0:02:15]} 24. h4 {[%clk 0:02:15]}  Qd3 {[%clk 0:01:58]} 25. Qxd3 {[%clk 0:02:14]}  Rxd3 {[%clk 0:01:58]} 26. Ra8+ {[%clk 0:02:09]}  Kh7 {[%clk 0:01:58]} 27. Rf8 {[%clk 0:02:08]}  f6 {[%clk 0:01:51]} 28. h5 {[%clk 0:02:08]}  Rd8 {[%clk 0:01:47]} 29. Rxd8 {[%clk 0:02:06]}  Nxd8 {[%clk 0:01:48]} 30. Bh3 {[%clk 0:02:06]}  Kg8 {[%clk 0:01:44]} 31. Nh4 {[%clk 0:01:55]}  Kf7 {[%clk 0:01:45]} 32. Kg2 {[%clk 0:01:55]}  Nc6 {[%clk 0:01:33]} 33. Bc8 {[%clk 0:01:54]}  Nd8 {[%clk 0:01:33]} 34. f4 {[%clk 0:01:54]}  exf4 {[%clk 0:01:24]} 35. gxf4 {[%clk 0:01:54]}  Be3 {[%clk 0:01:25]} 36. Kf3 {[%clk 0:01:43]}  Bd2 {[%clk 0:01:25]} 37. b5 {[%clk 0:01:37]}  Bxc3 {[%clk 0:01:24]} 38. Nf5 {[%clk 0:01:37]}  Bb4 {[%clk 0:01:14]} 39. e5 {[%clk 0:01:35]}  fxe5 {[%clk 0:01:13]} 40. fxe5 {[%clk 0:01:35]}  c6 {[%clk 0:00:57]} 41. b6 {[%clk 0:01:35]}  Ba5 {[%clk 0:00:27]} 42. Nd6+ {[%clk 0:01:31]}  Ke7 {[%clk 0:00:28]} 43. Nc4 {[%clk 0:01:32]}  Bc3 {[%clk 0:00:26]} 44. Ke4 {[%clk 0:01:32]}  Bb4 {[%clk 0:00:20]} 45. Kf5 {[%clk 0:01:30]}  Bc5 {[%clk 0:00:21]} 46. Kg6 {[%clk 0:01:28]}  Ne6 {[%clk 0:00:11]} 47. Bxe6 {[%clk 0:00:57]}  Kxe6 {[%clk 0:00:12]} 48. Kxg7 {[%clk 0:00:58]}  Kd5 {[%clk 0:00:12]} 49. Kxh6 {[%clk 0:00:58]}  Kxc4 {[%clk 0:00:13]} 50. Kg6 {[%clk 0:00:58]}  Kd5 {[%clk 0:00:13]} 51. Kf5 {[%clk 0:00:50]}  Bd4 {[%clk 0:00:13]} 52. e6 {[%clk 0:00:49]}  Kd6 {[%clk 0:00:14]} 53. h6 {[%clk 0:00:49]}  Ke7 {[%clk 0:00:14]} 54. h7 {[%clk 0:00:49]}  Bh8 {[%clk 0:00:14]} 55. Kg6 {[%clk 0:00:47]}  Kxe6 {[%clk 0:00:15]} 56. Kh6 {[%clk 0:00:48]}  c5 {[%clk 0:00:14]} 57. Kg6 {[%clk 0:00:48]}  c4 {[%clk 0:00:15]} 58. Kh6 {[%clk 0:00:49]}  c3 {[%clk 0:00:15]} 59. Kh5 {[%clk 0:00:49]}  c2 {[%clk 0:00:16]} 60. Kg6 {[%clk 0:00:50]}  c1=Q {[%clk 0:00:16]} 61. Kh5 {[%clk 0:00:50]}  Qg1 {[%clk 0:00:16]} 62. Kh4 {[%clk 0:00:50]}  Kf5 {[%clk 0:00:17]} 63. Kh3 {[%clk 0:00:51]}  Kf4 {[%clk 0:00:17]} 64. Kh4 {[%clk 0:00:51]}  Qh1# {[%clk 0:00:17]} 0-1


[Site "https://www.chess.com"]

[Event "Titled Tuesday Blitz September 27 Early 2022"]
[White "Ismayil, Malak"]
[Black "Rostomyan, Mikayel"]
[WhiteFideId "13412604"]
[BlackFideId "13313754"]
[WhiteElo "1879"]
[BlackElo "1426"]
[Result "0-1"]
[Round "07"]
[TimeControl "180+1"]
[Date "2022.09.27"]
[WhiteClock "0:00:03"]
[BlackClock "0:00:16"]

1. e4 {[%clk 0:03:00]}  c5 {[%clk 0:02:58]} 2. Nf3 {[%clk 0:03:00]}  d6 {[%clk 0:02:54]} 3. Bb5+ {[%clk 0:03:01]}  Nd7 {[%clk 0:02:50]} 4. Bxd7+ {[%clk 0:03:01]}  Bxd7 {[%clk 0:02:49]} 5. O-O {[%clk 0:03:02]}  Nf6 {[%clk 0:02:47]} 6. Re1 {[%clk 0:03:02]}  e6 {[%clk 0:02:41]} 7. d4 {[%clk 0:03:02]}  cxd4 {[%clk 0:02:39]} 8. Nxd4 {[%clk 0:03:03]}  Be7 {[%clk 0:02:38]} 9. c4 {[%clk 0:03:02]}  a6 {[%clk 0:02:36]} 10. b3 {[%clk 0:03:01]}  O-O {[%clk 0:02:35]} 11. Nc3 {[%clk 0:03:01]}  Qc7 {[%clk 0:02:35]} 12. Bb2 {[%clk 0:03:01]}  Rac8 {[%clk 0:02:33]} 13. Rc1 {[%clk 0:03:01]}  Rfd8 {[%clk 0:02:30]} 14. h3 {[%clk 0:03:00]}  Qb8 {[%clk 0:02:15]} 15. Qe2 {[%clk 0:02:59]}  e5 {[%clk 0:01:54]} 16. Nc2 {[%clk 0:02:55]}  b5 {[%clk 0:01:54]} 17. Ne3 {[%clk 0:02:53]}  Bc6 {[%clk 0:01:47]} 18. Ncd5 {[%clk 0:02:50]}  Bxd5 {[%clk 0:01:37]} 19. exd5 {[%clk 0:02:43]}  bxc4 {[%clk 0:01:37]} 20. bxc4 {[%clk 0:02:43]}  Nd7 {[%clk 0:01:31]} 21. Ba3 {[%clk 0:02:41]}  Nc5 {[%clk 0:01:28]} 22. Rb1 {[%clk 0:02:30]}  Qc7 {[%clk 0:01:26]} 23. Nf5 {[%clk 0:01:57]}  Bf8 {[%clk 0:01:24]} 24. Bb4 {[%clk 0:01:26]}  g6 {[%clk 0:01:18]} 25. Ne3 {[%clk 0:01:23]}  f5 {[%clk 0:01:10]} 26. Rec1 {[%clk 0:01:18]}  Bh6 {[%clk 0:01:00]} 27. Qd2 {[%clk 0:01:12]}  Qd7 {[%clk 0:00:47]} 28. Ba5 {[%clk 0:01:10]}  Re8 {[%clk 0:00:46]} 29. Rb6 {[%clk 0:00:57]}  f4 {[%clk 0:00:36]} 30. Ng4 {[%clk 0:00:56]}  Bg7 {[%clk 0:00:36]} 31. Rb4 {[%clk 0:00:31]}  h5 {[%clk 0:00:34]} 32. Nh2 {[%clk 0:00:30]}  g5 {[%clk 0:00:30]} 33. f3 {[%clk 0:00:27]}  e4 {[%clk 0:00:26]} 34. fxe4 {[%clk 0:00:27]}  Nxe4 {[%clk 0:00:25]} 35. Qd3 {[%clk 0:00:26]}  Ng3 {[%clk 0:00:20]} 36. Rd1 {[%clk 0:00:14]}  Bd4+ {[%clk 0:00:17]} 37. Qxd4 {[%clk 0:00:11]}  Ne2+ {[%clk 0:00:17]} 38. Kf2 {[%clk 0:00:12]}  Nxd4 {[%clk 0:00:18]} 39. Rxd4 {[%clk 0:00:12]}  Qe7 {[%clk 0:00:17]} 40. Nf3 {[%clk 0:00:02]}  g4 {[%clk 0:00:17]} 41. hxg4 {[%clk 0:00:02]}  hxg4 {[%clk 0:00:18]} 42. Rxf4 {[%clk 0:00:03]}  gxf3 {[%clk 0:00:17]} 43. Rxf3 {[%clk 0:00:03]}  Qe1# {[%clk 0:00:16]} 0-1


[Site "https://www.chess.com"]

[Event "Titled Tuesday Blitz September 27 Early 2022"]
[White "Jeet, Jain"]
[Black "Zilleruelo Irizarry, Diego"]
[WhiteFideId "5073022"]
[BlackFideId "3101460"]
[WhiteElo "2055"]
[BlackElo "1998"]
[Result "1-0"]
[Round "07"]
[TimeControl "180+1"]
[Date "2022.09.27"]
[WhiteClock "0:02:03"]
[BlackClock "0:02:19"]

1. d4 {[%clk 0:03:00]}  d5 {[%clk 0:02:59]} 2. Nf3 {[%clk 0:02:59]}  e6 {[%clk 0:02:57]} 3. Bf4 {[%clk 0:02:58]}  Bd6 {[%clk 0:02:56]} 4. Bg3 {[%clk 0:02:56]}  Nf6 {[%clk 0:02:56]} 5. Nbd2 {[%clk 0:02:52]}  c5 {[%clk 0:02:50]} 6. c3 {[%clk 0:02:50]}  Nc6 {[%clk 0:02:48]} 7. e3 {[%clk 0:02:49]}  Bxg3 {[%clk 0:02:47]} 8. hxg3 {[%clk 0:02:47]}  h6 {[%clk 0:02:47]} 9. Bd3 {[%clk 0:02:46]}  b6 {[%clk 0:02:42]} 10. Qe2 {[%clk 0:02:44]}  Bb7 {[%clk 0:02:41]} 11. O-O {[%clk 0:02:38]}  O-O {[%clk 0:02:40]} 12. a3 {[%clk 0:02:34]}  Rc8 {[%clk 0:02:39]} 13. Ne5 {[%clk 0:02:31]}  Nxe5 {[%clk 0:02:38]} 14. dxe5 {[%clk 0:02:32]}  Nd7 {[%clk 0:02:39]} 15. f4 {[%clk 0:02:30]}  Nb8 {[%clk 0:02:30]} 16. c4 {[%clk 0:02:21]}  Nc6 {[%clk 0:02:25]} 17. cxd5 {[%clk 0:02:20]}  Qxd5 {[%clk 0:02:24]} 18. Be4 {[%clk 0:02:15]}  Qd7 {[%clk 0:02:24]} 19. Rad1 {[%clk 0:02:11]}  Rfd8 {[%clk 0:02:23]} 20. Nc4 {[%clk 0:02:10]}  Qe7 {[%clk 0:02:24]} 21. Nd6 {[%clk 0:02:10]}  Rb8 {[%clk 0:02:19]} 22. Qf3 {[%clk 0:02:03]} 1-0


[Site "https://www.chess.com"]

[Event "Titled Tuesday Blitz September 27 Early 2022"]
[White "Jiganchine, Roman"]
[Black "Shivika, Rohilla"]
[WhiteFideId "2603667"]
[BlackFideId "45015414"]
[WhiteElo "2262"]
[BlackElo "1605"]
[Result "1-0"]
[Round "07"]
[TimeControl "180+1"]
[Date "2022.09.27"]
[WhiteClock "0:01:56"]
[BlackClock "0:02:18"]

1. Nf3 {[%clk 0:02:59]}  d5 {[%clk 0:02:59]} 2. e3 {[%clk 0:02:58]}  Nf6 {[%clk 0:02:58]} 3. c4 {[%clk 0:02:57]}  e6 {[%clk 0:02:56]} 4. b3 {[%clk 0:02:56]}  c5 {[%clk 0:02:54]} 5. Bb2 {[%clk 0:02:55]}  Nc6 {[%clk 0:02:54]} 6. cxd5 {[%clk 0:02:54]}  Nxd5 {[%clk 0:02:53]} 7. Nc3 {[%clk 0:02:39]}  Nf6 {[%clk 0:02:50]} 8. Qc2 {[%clk 0:02:37]}  Be7 {[%clk 0:02:46]} 9. h4 {[%clk 0:02:32]}  O-O {[%clk 0:02:38]} 10. Ng5 {[%clk 0:02:28]}  h6 {[%clk 0:02:35]} 11. Nce4 {[%clk 0:02:03]}  e5 {[%clk 0:02:20]} 12. Nxf6+ {[%clk 0:01:57]}  Bxf6 {[%clk 0:02:18]} 13. Qh7# {[%clk 0:01:56]} 1-0


[Site "https://www.chess.com"]

[Event "Titled Tuesday Blitz September 27 Early 2022"]
[White "Jones, Daniel"]
[Black "Badelka, Olga"]
[WhiteFideId "2019655"]
[BlackFideId "13509926"]
[WhiteElo "2355"]
[BlackElo "2165"]
[Result "0-1"]
[Round "07"]
[TimeControl "180+1"]
[Date "2022.09.27"]
[WhiteClock "0:00:34"]
[BlackClock "0:00:12"]

1. f4 {[%clk 0:02:57]}  c5 {[%clk 0:02:54]} 2. Nf3 {[%clk 0:02:51]}  Nc6 {[%clk 0:02:54]} 3. g3 {[%clk 0:02:45]}  d5 {[%clk 0:02:54]} 4. Bg2 {[%clk 0:02:46]}  g6 {[%clk 0:02:53]} 5. O-O {[%clk 0:02:47]}  Bg7 {[%clk 0:02:53]} 6. d3 {[%clk 0:02:48]}  Nf6 {[%clk 0:02:50]} 7. c3 {[%clk 0:02:43]}  O-O {[%clk 0:02:50]} 8. Qc2 {[%clk 0:02:41]}  d4 {[%clk 0:02:43]} 9. Nbd2 {[%clk 0:02:39]}  Bg4 {[%clk 0:02:38]} 10. e4 {[%clk 0:02:34]}  dxe3 {[%clk 0:02:37]} 11. Nc4 {[%clk 0:02:35]}  Bf5 {[%clk 0:02:27]} 12. Ne1 {[%clk 0:02:27]}  Nd5 {[%clk 0:02:18]} 13. Nxe3 {[%clk 0:02:24]}  Nxe3 {[%clk 0:02:17]} 14. Bxe3 {[%clk 0:02:25]}  c4 {[%clk 0:02:18]} 15. Be4 {[%clk 0:02:17]}  cxd3 {[%clk 0:01:52]} 16. Bxd3 {[%clk 0:02:17]}  Bxd3 {[%clk 0:01:51]} 17. Qxd3 {[%clk 0:02:17]}  Qa5 {[%clk 0:01:50]} 18. Nf3 {[%clk 0:02:01]}  Rfd8 {[%clk 0:01:50]} 19. Qc2 {[%clk 0:02:01]}  Rd5 {[%clk 0:01:45]} 20. a3 {[%clk 0:01:47]}  Rad8 {[%clk 0:01:44]} 21. Rad1 {[%clk 0:01:46]}  h5 {[%clk 0:01:38]} 22. Rxd5 {[%clk 0:01:42]}  Qxd5 {[%clk 0:01:38]} 23. c4 {[%clk 0:01:27]}  Qd3 {[%clk 0:01:33]} 24. Qxd3 {[%clk 0:01:27]}  Rxd3 {[%clk 0:01:34]} 25. Bc1 {[%clk 0:01:27]}  Na5 {[%clk 0:01:26]} 26. Ne5 {[%clk 0:01:18]}  Bxe5 {[%clk 0:01:25]} 27. fxe5 {[%clk 0:01:19]}  Nxc4 {[%clk 0:01:20]} 28. e6 {[%clk 0:01:16]}  fxe6 {[%clk 0:01:05]} 29. Bh6 {[%clk 0:01:13]}  Nxb2 {[%clk 0:00:51]} 30. Rf8+ {[%clk 0:01:11]}  Kh7 {[%clk 0:00:51]} 31. Bg5 {[%clk 0:01:12]}  Rd7 {[%clk 0:00:40]} 32. h3 {[%clk 0:01:02]}  Nc4 {[%clk 0:00:34]} 33. a4 {[%clk 0:00:59]}  e5 {[%clk 0:00:33]} 34. g4 {[%clk 0:00:59]}  hxg4 {[%clk 0:00:33]} 35. hxg4 {[%clk 0:01:00]}  Kg7 {[%clk 0:00:31]} 36. Rc8 {[%clk 0:00:53]}  Nd6 {[%clk 0:00:31]} 37. Rc5 {[%clk 0:00:53]}  Ne4 {[%clk 0:00:30]} 38. Rxe5 {[%clk 0:00:51]}  Nxg5 {[%clk 0:00:30]} 39. Rxg5 {[%clk 0:00:52]}  Kf6 {[%clk 0:00:30]} 40. Rb5 {[%clk 0:00:51]}  e5 {[%clk 0:00:29]} 41. Kf2 {[%clk 0:00:51]}  Ke6 {[%clk 0:00:27]} 42. Kf3 {[%clk 0:00:50]}  b6 {[%clk 0:00:27]} 43. a5 {[%clk 0:00:50]}  Rd6 {[%clk 0:00:28]} 44. Rb4 {[%clk 0:00:46]}  bxa5 {[%clk 0:00:27]} 45. Ra4 {[%clk 0:00:45]}  Rd5 {[%clk 0:00:26]} 46. Ke3 {[%clk 0:00:45]}  Rb5 {[%clk 0:00:26]} 47. Kf3 {[%clk 0:00:44]}  Kd5 {[%clk 0:00:27]} 48. Ke3 {[%clk 0:00:43]}  Rb3+ {[%clk 0:00:26]} 49. Kf2 {[%clk 0:00:43]}  Rb5 {[%clk 0:00:25]} 50. Ke3 {[%clk 0:00:44]}  g5 {[%clk 0:00:25]} 51. Ra1 {[%clk 0:00:40]}  Rb3+ {[%clk 0:00:22]} 52. Kf2 {[%clk 0:00:41]}  Rb5 {[%clk 0:00:12]} 53. Ke3 {[%clk 0:00:41]}  Kc4 {[%clk 0:00:12]} 54. Ke4 {[%clk 0:00:40]}  Kb4 {[%clk 0:00:05]} 55. Kf5 {[%clk 0:00:39]}  a4 {[%clk 0:00:05]} 56. Kxg5 {[%clk 0:00:40]}  a3 {[%clk 0:00:04]} 57. Kf5 {[%clk 0:00:37]}  Ka4 {[%clk 0:00:04]} 58. g5 {[%clk 0:00:36]}  e4+ {[%clk 0:00:05]} 59. Kf4 {[%clk 0:00:36]}  e3 {[%clk 0:00:04]} 60. Rg1 {[%clk 0:00:33]}  Rb8 {[%clk 0:00:04]} 61. Kxe3 {[%clk 0:00:33]}  a2 {[%clk 0:00:04]} 62. Kd3 {[%clk 0:00:32]}  Rb1 {[%clk 0:00:04]} 63. Rg4+ {[%clk 0:00:31]}  Ka3 {[%clk 0:00:05]} 64. g6 {[%clk 0:00:28]}  a1=Q {[%clk 0:00:05]} 65. g7 {[%clk 0:00:28]}  Rb3+ {[%clk 0:00:06]} 66. Ke2 {[%clk 0:00:28]}  Qb2+ {[%clk 0:00:06]} 67. Kf1 {[%clk 0:00:28]}  Qc1+ {[%clk 0:00:06]} 68. Kg2 {[%clk 0:00:28]}  Qc2+ {[%clk 0:00:06]} 69. Kh1 {[%clk 0:00:28]}  Rb1+ {[%clk 0:00:07]} 70. Rg1 {[%clk 0:00:27]}  Rxg1+ {[%clk 0:00:07]} 71. Kxg1 {[%clk 0:00:28]}  Qg6+ {[%clk 0:00:07]} 72. Kf2 {[%clk 0:00:29]}  Qxg7 {[%clk 0:00:08]} 73. Ke3 {[%clk 0:00:30]}  Qe5+ {[%clk 0:00:08]} 74. Kd2 {[%clk 0:00:31]}  Kb3 {[%clk 0:00:08]} 75. Kc1 {[%clk 0:00:31]}  Qc3+ {[%clk 0:00:09]} 76. Kd1 {[%clk 0:00:31]}  Qb2 {[%clk 0:00:09]} 77. Ke1 {[%clk 0:00:32]}  Kc3 {[%clk 0:00:10]} 78. Kf1 {[%clk 0:00:33]}  Kd3 {[%clk 0:00:10]} 79. Kg1 {[%clk 0:00:33]}  Ke3 {[%clk 0:00:11]} 80. Kh1 {[%clk 0:00:34]}  Kf3 {[%clk 0:00:12]} 81. Kg1 {[%clk 0:00:34]}  Qg2# {[%clk 0:00:12]} 0-1


[Site "https://www.chess.com"]

[Event "Titled Tuesday Blitz September 27 Early 2022"]
[White "Khamdamova, Afruza"]
[Black "Niekras, Dawid"]
[WhiteFideId "14210444"]
[BlackFideId "1160451"]
[WhiteElo "1668"]
[BlackElo "2296"]
[Result "1/2-1/2"]
[Round "07"]
[TimeControl "180+1"]
[Date "2022.09.27"]
[WhiteClock "0:00:06"]
[BlackClock "0:00:02"]

1. e4 {[%clk 0:03:00]}  c5 {[%clk 0:03:00]} 2. Nf3 {[%clk 0:03:00]}  g6 {[%clk 0:03:00]} 3. d4 {[%clk 0:03:00]}  cxd4 {[%clk 0:03:01]} 4. Nxd4 {[%clk 0:03:00]}  Nc6 {[%clk 0:03:02]} 5. Nc3 {[%clk 0:03:00]}  Bg7 {[%clk 0:03:02]} 6. Be3 {[%clk 0:03:00]}  Nf6 {[%clk 0:03:03]} 7. Bc4 {[%clk 0:02:57]}  Qa5 {[%clk 0:03:03]} 8. Qd2 {[%clk 0:02:54]}  Nxe4 {[%clk 0:02:59]} 9. Nxc6 {[%clk 0:02:43]}  Qxc3 {[%clk 0:02:59]} 10. bxc3 {[%clk 0:02:20]}  Nxd2 {[%clk 0:02:59]} 11. Kxd2 {[%clk 0:02:19]}  dxc6 {[%clk 0:02:59]} 12. Rae1 {[%clk 0:02:17]}  O-O {[%clk 0:02:40]} 13. Bc5 {[%clk 0:02:13]}  Rd8+ {[%clk 0:02:40]} 14. Kc1 {[%clk 0:02:01]}  e5 {[%clk 0:01:59]} 15. Rd1 {[%clk 0:01:33]}  Rxd1+ {[%clk 0:01:25]} 16. Rxd1 {[%clk 0:01:32]}  Bf5 {[%clk 0:01:15]} 17. f3 {[%clk 0:01:18]}  h5 {[%clk 0:01:05]} 18. a4 {[%clk 0:01:12]}  b6 {[%clk 0:01:03]} 19. Ba3 {[%clk 0:01:10]}  Bf6 {[%clk 0:00:36]} 20. Kb2 {[%clk 0:01:07]}  Rd8 {[%clk 0:00:35]} 21. Rxd8+ {[%clk 0:01:05]}  Bxd8 {[%clk 0:00:36]} 22. Bd6 {[%clk 0:01:05]}  e4 {[%clk 0:00:34]} 23. fxe4 {[%clk 0:01:03]}  Bxe4 {[%clk 0:00:35]} 24. g3 {[%clk 0:01:02]}  Kg7 {[%clk 0:00:18]} 25. Bb8 {[%clk 0:01:02]}  a5 {[%clk 0:00:18]} 26. Be5+ {[%clk 0:01:01]}  Kf8 {[%clk 0:00:16]} 27. Bd6+ {[%clk 0:00:59]}  Be7 {[%clk 0:00:16]} 28. Bc7 {[%clk 0:00:57]}  Bc5 {[%clk 0:00:16]} 29. Kc1 {[%clk 0:00:52]}  Ke7 {[%clk 0:00:15]} 30. h4 {[%clk 0:00:48]}  f6 {[%clk 0:00:10]} 31. Bf4 {[%clk 0:00:46]}  Bd5 {[%clk 0:00:09]} 32. Bd3 {[%clk 0:00:44]}  Bf7 {[%clk 0:00:09]} 33. Kd2 {[%clk 0:00:44]}  Kd7 {[%clk 0:00:06]} 34. Ke2 {[%clk 0:00:43]}  Bd6 {[%clk 0:00:04]} 35. Be3 {[%clk 0:00:42]}  Bxg3 {[%clk 0:00:04]} 36. Bxb6 {[%clk 0:00:42]}  Bc7 {[%clk 0:00:05]} 37. Bf2 {[%clk 0:00:41]}  g5 {[%clk 0:00:02]} 38. Bf5+ {[%clk 0:00:40]}  Be6 {[%clk 0:00:02]} 39. Bg6 {[%clk 0:00:38]}  Bg4+ {[%clk 0:00:03]} 40. Kd3 {[%clk 0:00:38]}  Be5 {[%clk 0:00:03]} 41. c4 {[%clk 0:00:29]}  Kc7 {[%clk 0:00:03]} 42. c5 {[%clk 0:00:28]}  Kb7 {[%clk 0:00:02]} 43. Be1 {[%clk 0:00:24]}  Bf4 {[%clk 0:00:02]} 44. Ke4 {[%clk 0:00:18]}  Bc1 {[%clk 0:00:01]} 45. Be8 {[%clk 0:00:17]}  gxh4 {[%clk 0:00:01]} 46. Bxh4 {[%clk 0:00:16]}  Bg5 {[%clk 0:00:02]} 47. Be1 {[%clk 0:00:16]}  h4 {[%clk 0:00:02]} 48. Bg6 {[%clk 0:00:11]}  f5+ {[%clk 0:00:02]} 49. Bxf5 {[%clk 0:00:10]}  Bd1 {[%clk 0:00:02]} 50. Kd3 {[%clk 0:00:09]}  Kc7 {[%clk 0:00:02]} 51. Bxa5+ {[%clk 0:00:09]}  Kb7 {[%clk 0:00:02]} 52. Bc3 {[%clk 0:00:09]}  Be7 {[%clk 0:00:02]} 53. Bd4 {[%clk 0:00:09]}  Bf3 {[%clk 0:00:02]} 54. a5 {[%clk 0:00:08]}  Bg2 {[%clk 0:00:03]} 55. Ke3 {[%clk 0:00:08]}  h3 {[%clk 0:00:03]} 56. Be5 {[%clk 0:00:08]}  Bg5+ {[%clk 0:00:03]} 57. Kf2 {[%clk 0:00:08]}  Bd2 {[%clk 0:00:04]} 58. Kg1 {[%clk 0:00:07]}  Bxa5 {[%clk 0:00:04]} 59. Kh2 {[%clk 0:00:07]}  Bb4 {[%clk 0:00:04]} 60. Bd6 {[%clk 0:00:07]}  Ka6 {[%clk 0:00:04]} 61. Bxh3 {[%clk 0:00:08]}  Be4 {[%clk 0:00:04]} 62. Bf1+ {[%clk 0:00:06]}  Ka5 {[%clk 0:00:04]} 63. c4 {[%clk 0:00:06]}  Ka4 {[%clk 0:00:03]} 64. Kg3 {[%clk 0:00:06]}  Kb3 {[%clk 0:00:03]} 65. Kf4 {[%clk 0:00:06]}  Bh7 {[%clk 0:00:02]} 66. Ke5 {[%clk 0:00:06]}  Bg8 {[%clk 0:00:02]} 67. Kf6 {[%clk 0:00:07]}  Bxc4 {[%clk 0:00:02]} 68. Bg2 {[%clk 0:00:06]}  Bb5 {[%clk 0:00:02]} 69. Ke7 {[%clk 0:00:06]}  Kc4 {[%clk 0:00:02]} 70. Kd7 {[%clk 0:00:06]}  Bxc5 {[%clk 0:00:02]} 71. Bxc6 {[%clk 0:00:06]}  Bxc6+ {[%clk 0:00:02]} 72. Kxc6 {[%clk 0:00:06]} 1/2-1/2


[Site "https://www.chess.com"]